fUSD/lending_fUSD_20260226
["ID","MTS","AMOUNT","RATE_DAILY","PERIOD"]
[406680890,1772073041976,-164.03684488,0.00013699,2]
[406680891,1772073041984,-524.45332011,0.00013699,2]
[406680892,1772073041993,-500.0,0.00013699,2]
[406680893,1772073042002,-500.0,0.00013699,2]
[406680894,1772073042012,-160.2268493,0.00013699,2]
[406680895,1772073042021,-500.0,0.00013699,2]
[406680896,1772073042030,-500.0,0.00013699,2]
[406680897,1772073042039,-500.0,0.00013699,2]
[406680898,1772073042049,-500.0,0.00013699,2]
[406680899,1772073042057,-500.0,0.00013699,2]
[406680900,1772073042067,-620.71882978,0.00013699,2]
[406680901,1772073042076,-500.0,0.00013699,2]
[406680902,1772073042085,-500.0,0.00013699,2]
[406680903,1772073042094,-335.7324919,0.00013699,2]
[406680904,1772073042104,-500.0,0.00013699,2]
[406680905,1772073042114,-500.0,0.00013699,2]
[406680906,1772073042123,-500.0,0.00013699,2]
[406680907,1772073042133,-500.0,0.00013699,2]
[406680908,1772073042144,-308.72210557,0.00013699,2]
[406680909,1772073042153,-209.72063022,0.00013699,2]
[406680910,1772073042163,-500.0,0.00013699,2]
[406680911,1772073042172,-500.0,0.00013699,2]
[406680912,1772073042181,-160.93544201,0.00013699,2]
[406680913,1772073042190,-500.0,0.00013699,2]
[406680914,1772073042200,-337.83752108,0.00013699,2]
[406680915,1772073042209,-500.0,0.00013699,2]
[406680916,1772073042218,-500.0,0.00013699,2]
[406680917,1772073042228,-500.0,0.00013699,2]
[406680918,1772073042237,-500.0,0.00013699,2]
[406680919,1772073042247,-500.0,0.00013699,2]
[406680921,1772073042256,-500.0,0.00013699,2]
[406680923,1772073042266,-500.0,0.00013699,2]
[406680925,1772073042275,-500.0,0.00013699,2]
[406680926,1772073042285,-500.0,0.00013699,2]
[406680927,1772073042294,-500.0,0.00013699,2]
[406680928,1772073042303,-500.0,0.00013699,2]
[406680929,1772073042313,-500.0,0.00013699,2]
[406680930,1772073042322,-500.0,0.00013699,2]
[406680931,1772073042331,-500.0,0.00013699,2]
[406680932,1772073042340,-500.0,0.00013699,2]
[406680933,1772073042350,-161.16677008,0.00013699,2]
[406680934,1772073042359,-500.0,0.00013699,2]
[406680935,1772073042368,-500.0,0.00013699,2]
[406680936,1772073042378,-500.0,0.00013699,2]
[406680937,1772073042388,-500.0,0.00013699,2]
[406680938,1772073042399,-500.0,0.00013699,2]
[406680939,1772073042408,-500.0,0.00013699,2]
[406680940,1772073042417,-500.0,0.00013699,2]
[406680941,1772073042427,-152.0,0.00013864,15]
[406680942,1772073042436,-152.0,0.00014044,16]
[406680943,1772073042445,-152.0,0.00014224,17]
[406680944,1772073042455,-1000.87913707,0.00014247,2]
[406680945,1772073042464,-1003.43569422,0.00014247,2]
[406680946,1772073042473,-800.77489472,0.00014247,2]
[406680947,1772073042483,-1000.0,0.00014247,2]
[406680948,1772073042492,-1000.0,0.00014247,2]
[406680949,1772073042501,-176.13031917,0.00014247,2]
[406680950,1772073042510,-1003.24758094,0.00014247,2]
[406680951,1772073042519,-1000.0,0.00014247,2]
[406680952,1772073042528,-1000.0,0.00014247,2]
[406680953,1772073042538,-1002.10318534,0.00014247,2]
[406680954,1772073042547,-604.53668535,0.00014247,2]
[406680955,1772073042556,-1000.0,0.00014247,2]
[406680956,1772073042565,-1000.0,0.00014247,2]
[406680957,1772073042575,-1000.0,0.00014247,2]
[406680958,1772073042584,-1008.73606544,0.00014247,2]
[406680959,1772073042593,-380.66692773,0.00014247,2]
[406680960,1772073042602,-1001.36718097,0.00014247,2]
[406680961,1772073042612,-1001.13953676,0.00014247,2]
[406680962,1772073042621,-1000.0,0.00014247,2]
[406680963,1772073042631,-1001.07129304,0.00014247,2]
[406680964,1772073042641,-1001.81202346,0.00014247,2]
[406680965,1772073042651,-1001.44915319,0.00014247,2]
[406680966,1772073042660,-1000.77929008,0.00014247,2]
[406680967,1772073042673,-1000.0,0.00014247,2]
[406680968,1772073042779,-1002.48322638,0.00014247,2]
[406680969,1772073042789,-1009.34294002,0.00014247,2]
[406680970,1772073042799,-351.97959674,0.00014247,2]
[406680971,1772073042809,-1001.84370953,0.00014247,2]
[406680972,1772073042818,-468.28282852,0.00014247,2]
[406680973,1772073042828,-1000.92893184,0.00014247,2]
[406680974,1772073042838,-1000.0,0.00014247,2]
[406680975,1772073042848,-1001.17238446,0.00014247,2]
[406680976,1772073042858,-992.81354466,0.00014247,2]
[406680978,1772073042868,-1001.32593476,0.00014247,2]
[406680980,1772073042878,-503.4329372,0.00014247,2]
[406680982,1772073042887,-1002.2111982,0.00014247,2]
[406680983,1772073042898,-1002.34821316,0.00014247,2]
[406680984,1772073042908,-375.44426131,0.00014247,2]
[406680985,1772073042918,-1005.73275507,0.00014247,2]
[406680986,1772073042927,-501.26732063,0.00014247,2]
[406680987,1772073042936,-1003.92439647,0.00014247,2]
[406680988,1772073042945,-1001.41900539,0.00014247,2]
[406680989,1772073042955,-1001.12380707,0.00014247,2]
[406680990,1772073042964,-502.89642455,0.00014247,2]
[406680991,1772073042973,-1002.22507836,0.00014247,2]
[406680992,1772073042983,-1001.21349906,0.00014247,2]
[406680993,1772073042992,-1001.76849561,0.00014247,2]
[406680994,1772073043002,-1001.4270061,0.00014247,2]
[406680995,1772073043012,-185.75789258,0.00014247,2]
[406680996,1772073043021,-1000.0,0.00014247,2]
[406680997,1772073043030,-1000.0,0.00014247,2]
[406680998,1772073043040,-1001.29204001,0.00014247,2]
[406680999,1772073043049,-1002.06581507,0.00014247,2]
[406681000,1772073043058,-847.32630053,0.00014344,2]
[406681001,1772073043067,-18457.91106556,0.00014384,2]
[406681002,1772073043076,-3342.45896472,0.00014384,2]
[406681003,1772073043085,-180.0,0.00014399,2]
[406681004,1772073043095,-152.0,0.00014403,18]
[406681005,1772073043104,-283.44809264,0.0001441,2]
[406681006,1772073043114,-9088.0,0.0001441,2]
[406681007,1772073043124,-152.0,0.00014583,19]
[406681008,1772073043134,-173.95657067,0.00014654,2]
[406681009,1772073043143,-160.0,0.00014654,2]
[406681010,1772073043153,-152.0,0.00014763,20]
[406681011,1772073043162,-276.67774061,0.00014795,2]
[406681012,1772073043171,-1500.0,0.00014795,2]
[406681013,1772073043180,-1092.89603598,0.00014795,2]
[406681014,1772073043189,-1500.0,0.00014795,2]
[406681015,1772073043199,-1501.31398906,0.00014795,2]
[406681016,1772073043208,-1501.66913587,0.00014795,2]
[406681017,1772073043218,-1507.14480437,0.00014795,2]
[406681018,1772073043226,-1217.27858116,0.00014795,2]
[406681019,1772073043236,-1043.57929262,0.00014795,2]
[406681020,1772073043244,-1500.0,0.00014795,2]
[406681021,1772073043254,-5750.26869106,0.00014839,2]
[406681022,1772073043263,-502.0,0.0001489,2]
[406681023,1772073043273,-152.0,0.00014942,21]
[406681024,1772073043283,-493.54009744,0.00014948,2]
[406681025,1772073043293,-250.0,0.00015,2]
[406681026,1772073043303,-174.63,0.00015,2]
[406681027,1772073043312,-261.864285,0.00015119,7]
[406681028,1772073043322,-175.036731,0.00015119,7]
[406681029,1772073043332,-152.0,0.00015122,22]
[406681030,1772073043342,-152.0,0.00015302,23]
[406681031,1772073043352,-2000.0,0.00015342,2]
[406681032,1772073043362,-1827.89337357,0.00015342,2]
[406681033,1772073043372,-2000.0,0.00015342,2]
[406681034,1772073043382,-889.65627328,0.00015395,2]
[406681035,1772073043391,-152.0,0.00015481,24]
[406681036,1772073043404,-18457.91106556,0.00015556,2]
[406681037,1772073043413,-3342.45896472,0.00015556,2]
[406681038,1772073043422,-152.0,0.00015661,25]
[406681039,1772073043431,-152.0,0.00015841,26]
[406681040,1772073043440,-2500.0,0.0001589,2]
[406681041,1772073043449,-2500.0,0.0001589,2]
[406681042,1772073043458,-474.08053912,0.00016005,2]
[406681043,1772073043468,-152.0,0.0001602,27]
[406681044,1772073043477,-7947.48,0.00016116,2]
[406681045,1772073043486,-152.0,0.000162,28]
[406681046,1772073043495,-174.81061234,0.000162,5]
[406681047,1772073043504,-500.0,0.00016356,2]
[406681048,1772073043514,-500.0,0.00016356,2]
[406681049,1772073043524,-900.0,0.00016356,2]
[406681050,1772073043533,-5750.26869106,0.0001637,2]
[406681051,1772073043543,-500.0,0.00016437,2]
[406681052,1772073043552,-500.0,0.00016438,2]
[406681053,1772073043562,-500.0,0.00016438,3]
[406681054,1772073043571,-500.0,0.00016438,4]
[406681055,1772073043580,-500.0,0.00016438,5]
[406681056,1772073043589,-500.0,0.00016438,6]
[406681057,1772073043598,-500.0,0.00016438,7]
[406681058,1772073043607,-500.0,0.00016438,8]
[406681059,1772073043617,-500.0,0.00016438,9]
[406681060,1772073043627,-500.0,0.00016438,10]
[406681061,1772073043636,-500.0,0.00016438,11]
[406681062,1772073043646,-500.0,0.00016438,12]
[406681063,1772073043655,-500.0,0.00016438,13]
[406681064,1772073043665,-500.0,0.00016438,14]
[406681065,1772073043679,-500.0,0.00016438,15]
[406681066,1772073043688,-500.0,0.00016438,16]
[406681067,1772073043697,-228.09,0.00016438,2]
[406681068,1772073043707,-1000.0,0.00016438,2]
[406681069,1772073043716,-1190.62156941,0.00016438,2]
[406681070,1772073043725,-3007.20418576,0.00016438,2]
[406681071,1772073043735,-502.0,0.0001656,3]
[406681072,1772073043744,-694.9,0.00016712,2]
[406681073,1772073043753,-1000.0,0.00016712,2]
[406681074,1772073043762,-18457.91106556,0.00016728,2]
[406681075,1772073043772,-3342.45896472,0.00016728,2]
[406681076,1772073043781,-533.85398751,0.00016749,17]
[406681077,1772073043790,-18151.59689486,0.00016843,2]
[406681078,1772073043800,-168.0,0.00016928,2]
[406681079,1772073043809,-625.0,0.00016933,2]
[406681080,1772073043818,-507.65701083,0.00016942,2]
[406681081,1772073043827,-1280.071,0.00016943,2]
[406681082,1772073043836,-150.175,0.00016943,2]
[406681083,1772073043846,-920.0,0.00016943,2]
[406681084,1772073043855,-1211.0,0.00016943,2]
[406681085,1772073043865,-5983.0,0.00016943,2]
[406681086,1772073043874,-1340.0,0.00016943,2]
[406681087,1772073043883,-694.9,0.00016986,2]
[406681088,1772073043893,-300.0,0.00017,2]
[406681089,1772073043904,-160.0,0.00017003,2]
[406681090,1772073043914,-2844.0,0.0001704,2]
[406681091,1772073043923,-5436.70489032,0.000171,2]
[406681092,1772073043932,-350.0,0.00017109,2]
[406681093,1772073043941,-694.9,0.0001726,2]
[406681094,1772073043951,-625.0,0.00017282,2]
[406681095,1772073043960,-153.38,0.00017319,2]
[406681096,1772073043969,-168.0,0.00017326,2]
[406681097,1772073043979,-625.0,0.00017356,2]
[406681098,1772073043989,-845.0,0.0001736,2]
[406681099,1772073043999,-2844.0,0.0001736,2]
[406681100,1772073044009,-845.0,0.0001736,2]
[406681101,1772073044021,-857.0,0.0001736,2]
[406681102,1772073044030,-18151.59689484,0.00017372,2]
[406681103,1772073044040,-350.0,0.00017373,2]
[406681104,1772073044050,-168.0,0.00017476,2]
[406681105,1772073044060,-625.0,0.00017511,2]
[406681106,1772073044069,-694.9,0.00017534,2]
[406681107,1772073044079,-8384.10764509,0.000176,2]
[406681108,1772073044089,-350.0,0.00017612,2]
[406681109,1772073044100,-213.1171,0.00017616,2]
[406681110,1772073044110,-1013.27824028,0.0001764,2]
[406681111,1772073044119,-1676.00957423,0.0001764,2]
[406681112,1772073044128,-1163.0674932,0.0001764,2]
[406681113,1772073044138,-201.4961393,0.00017666,2]
[406681114,1772073044148,-190.0,0.0001768,2]
[406681115,1772073044157,-1493.0,0.0001768,2]
[406681116,1772073044167,-246.91345338,0.00017698,2]
[406681117,1772073044176,-150.0,0.00017698,2]
[406681118,1772073044185,-500.0,0.00017698,2]
[406681119,1772073044194,-156.49815943,0.00017698,2]
[406681120,1772073044203,-350.0,0.00017711,2]
[406681121,1772073044213,-900.0,0.00017726,7]
[406681122,1772073044222,-380.0,0.00017747,2]
[406681123,1772073044231,-380.0,0.00017748,2]
[406681124,1772073044241,-150.0,0.00017753,2]
[406681125,1772073044251,-500.0,0.00017753,2]
[406681126,1772073044261,-380.0,0.00017763,2]
[406681127,1772073044272,-380.0,0.00017783,2]
[406681128,1772073044281,-176.0,0.000178,2]
[406681129,1772073044290,-175.45,0.000178,2]
[406681130,1772073044300,-380.0,0.00017804,2]
[406681131,1772073044399,-150.0,0.00017808,2]
[406681132,1772073044419,-500.0,0.00017808,2]
[406681133,1772073044429,-694.9,0.00017808,2]
[406681134,1772073044438,-500.0,0.00017808,2]
[406681135,1772073044449,-800.0,0.00017808,2]
[406681136,1772073044458,-380.0,0.00017813,2]
[406681137,1772073044467,-380.0,0.00017813,2]
[406681138,1772073044477,-261.85892847,0.00017813,2]
[406681139,1772073044487,-280.31982,0.0001782,2]
[406681140,1772073044496,-280.31981,0.0001782,2]
[406681141,1772073044505,-380.0,0.00017826,2]
[406681142,1772073044515,-380.0,0.00017839,2]
[406681143,1772073044525,-164.99938666,0.00017862,2]
[406681144,1772073044534,-500.0,0.00017862,2]
[406681145,1772073044543,-500.0,0.00017863,2]
[406681146,1772073044554,-380.0,0.00017872,2]
[406681147,1772073044563,-159.23,0.0001789,2]
[406681148,1772073044574,-380.0,0.00017891,2]
[406681149,1772073044586,-341.80809328,0.000179,2]
[406681150,1772073044596,-1325.33516905,0.000179,3]
[406681151,1772073044606,-10000.0,0.000179,2]
[406681152,1772073044616,-150.0,0.000179,2]
[406681153,1772073044625,-150.0,0.000179,2]
[406681154,1772073044635,-150.0,0.000179,2]
[406681155,1772073044644,-150.0,0.000179,2]
[406681156,1772073044655,-18457.91106556,0.000179,2]
[406681157,1772073044665,-3342.45896472,0.000179,2]
[406681158,1772073044678,-150.0,0.000179,2]
[406681159,1772073044688,-224.83939755,0.000179,2]
[406681160,1772073044698,-161.3158918,0.000179,2]
[406681161,1772073044708,-5750.26869106,0.000179,2]
[406681162,1772073044717,-18151.59689484,0.000179,2]
[406681163,1772073044726,-380.0,0.00017914,2]
[406681164,1772073044735,-500.0,0.00017917,2]
[406681165,1772073044744,-500.0,0.00017918,2]
[406681166,1772073044753,-380.0,0.00017929,2]
[406681167,1772073044763,-380.0,0.00017948,2]
[406681168,1772073044773,-380.0,0.00017949,2]
[406681169,1772073044782,-625.0,0.00017955,2]
[406681170,1772073044792,-380.0,0.00017969,2]
[406681171,1772073044802,-500.0,0.00017972,2]
[406681172,1772073044811,-500.0,0.00017972,2]
[406681173,1772073044819,-167.86555459,0.00017985,2]
[406681174,1772073044829,-167.86555459,0.0001799,2]
[406681175,1772073044839,-330.36078572,0.00017994,2]
[406681176,1772073044849,-500.0,0.00017994,2]
[406681177,1772073044859,-500.0,0.00017994,2]
[406681178,1772073044869,-375.12411404,0.00017994,2]
[406681179,1772073044878,-300.0,0.00017994,2]
[406681180,1772073044888,-13762.3696309,0.00017995,2]
[406681181,1772073044897,-763370.3711441,0.00017995,2]
[406681182,1772073044907,-14194.3429918,0.00017995,2]
[406681183,1772073044917,-153.208343,0.00017995,2]
[406681184,1772073044927,-8099.2564152,0.00017995,2]
[406681185,1772073044936,-151.0,0.00017995,2]
[406681186,1772073044946,-151.0,0.00017995,2]
[406681187,1772073044956,-174.402938,0.00017995,2]
[406681188,1772073044966,-156.494645,0.00017995,2]
[406681189,1772073044975,-169.570929,0.00017995,2]
[406681190,1772073044985,-169.570929,0.00017995,2]
[406681191,1772073044994,-169.570929,0.00017995,2]
[406681192,1772073045003,-169.570929,0.00017995,2]
[406681193,1772073045013,-262.094236,0.00017995,2]
[406681194,1772073045023,-262.094236,0.00017995,2]
[406681195,1772073045032,-262.094236,0.00017995,2]
[406681196,1772073045041,-262.094236,0.00017995,2]
[406681197,1772073045051,-175.668016,0.00017995,2]
[406681198,1772073045061,-151.0,0.00017995,2]
[406681199,1772073045070,-151.0,0.00017995,2]
[406681200,1772073045079,-500.0,0.00017998,3]
[406681201,1772073045088,-500.0,0.00017998,3]
[406681202,1772073045097,-500.0,0.00017998,3]
[406681203,1772073045107,-500.0,0.00017998,3]
[406681204,1772073045116,-500.0,0.00017998,3]
[406681205,1772073045126,-500.0,0.00017998,3]
[406681206,1772073045136,-500.0,0.00017998,3]
[406681207,1772073045146,-500.0,0.00017998,3]
[406681208,1772073045155,-693.3919763,0.00017998,3]
[406681209,1772073045165,-500.0,0.00017998,3]
[406681210,1772073045175,-500.0,0.00017998,3]
[406681211,1772073045184,-719.04747942,0.00017998,3]
[406681212,1772073045193,-500.0,0.00017998,3]
[406681213,1772073045202,-530.7269194,0.00017998,3]
[406681214,1772073045212,-745.65223616,0.00017998,3]
[406681215,1772073045222,-500.0,0.00017998,3]
[406681216,1772073045231,-500.0,0.00017998,3]
[406681217,1772073045241,-773.2413689,0.00017998,3]
[406681218,1772073045251,-500.0,0.00017998,3]
[406681219,1772073045261,-801.85129955,0.00017998,3]
[406681220,1772073045271,-831.51979763,0.00017998,3]
[406681221,1772073045280,-862.28603014,0.00017998,3]
[406681222,1772073045290,-894.19061326,0.00017998,3]
[406681223,1772073045300,-151.09270832,0.00017998,3]
[406681224,1772073045311,-500.0,0.00017998,3]
[406681225,1772073045322,-500.0,0.00017998,3]
[406681226,1772073045332,-355.92353835,0.00017998,3]
[406681227,1772073045342,-500.0,0.00017998,3]
[406681228,1772073045353,-500.0,0.00017998,3]
[406681229,1772073045363,-500.0,0.00017998,3]
[406681230,1772073045372,-500.0,0.00017998,3]
[406681231,1772073045382,-500.0,0.00017998,3]
[406681232,1772073045392,-584.72359272,0.00017998,3]
[406681233,1772073045403,-151.0,0.00017998,3]
[406681234,1772073045414,-151.0,0.00017998,3]
[406681235,1772073045423,-151.0,0.00017998,3]
[406681236,1772073045432,-151.0,0.00017998,3]
[406681237,1772073045441,-151.0,0.00017998,3]
[406681238,1772073045451,-151.0,0.00017998,3]
[406681239,1772073045460,-151.0,0.00017998,3]
[406681240,1772073045470,-151.0,0.00017998,3]
[406681241,1772073045479,-151.0,0.00017998,3]
[406681242,1772073045489,-172.22478143,0.00017998,3]
[406681243,1772073045499,-309.62563364,0.00017999,2]
[406681244,1772073045508,-400.000001,0.00018,2]
[406681245,1772073045518,-2171636.16199124,0.00018,2]
[406681246,1772073045884,-2052.11023063,0.00018,2]
[406681251,1772073045962,-2456.0,0.00016943,2]
[406681253,1772073045971,-6021.21258789,0.00018,2]
[406681256,1772073045983,-344.0,0.00018,2]
[406681258,1772073045994,-3247.89689275,0.00018,2]
[406681260,1772073046008,-843373.25684034,0.00018,2]
[406681262,1772073046083,-1222.0,0.00016828,2]
[406681263,1772073046095,-743.04130874,0.00016828,2]
[406681264,1772073046105,-4787.95869126,0.00018,2]
[406681265,1772073046118,-28081.32015037,0.00018,2]
[406681269,1772073194963,784.57,7.181e-05,2]
[406681270,1772073194987,2000.0,7.181e-05,2]
[406681531,1772073368722,-1200.0,7.179e-05,2]
[406681532,1772073368749,-250.0,7.179e-05,2]
[406681533,1772073368774,-467.325645,7.18e-05,2]
[406681534,1772073368801,-506.9207773,7.18e-05,2]
[406681535,1772073368828,-184.44852291,7.18e-05,2]
[406681536,1772073368854,-500.0,7.18e-05,2]
[406681537,1772073368877,-362.7163988,7.18e-05,2]
[406681538,1772073368901,-500.0,7.18e-05,2]
[406681539,1772073368929,-500.0,7.18e-05,2]
[406681540,1772073368957,-500.0,7.18e-05,2]
[406681541,1772073368980,-500.0,7.18e-05,2]
[406681542,1772073369004,-500.0,7.18e-05,2]
[406681543,1772073369028,-500.0,7.18e-05,2]
[406681544,1772073369056,-500.0,7.18e-05,2]
[406681545,1772073369080,-450.38667386,7.18e-05,2]
[406681546,1772073369327,-500.0,7.18e-05,2]
[406681547,1772073369364,-500.0,7.18e-05,2]
[406681548,1772073369390,-500.0,7.18e-05,2]
[406681549,1772073369413,-500.0,7.18e-05,2]
[406681550,1772073369439,-500.0,7.18e-05,2]
[406681551,1772073369461,-291.33501849,7.18e-05,2]
[406681552,1772073369491,-500.0,7.18e-05,2]
[406681553,1772073369518,-500.0,7.18e-05,2]
[406681554,1772073369543,-500.0,7.18e-05,2]
[406681555,1772073369569,-500.0,7.18e-05,2]
[406681556,1772073369595,-500.0,7.18e-05,2]
[406681557,1772073369620,-500.0,7.18e-05,2]
[406681558,1772073369646,-155.90544017,7.18e-05,2]
[406681559,1772073369671,-500.0,7.18e-05,2]
[406681560,1772073369697,-500.0,7.18e-05,2]
[406681561,1772073369725,-500.0,7.18e-05,2]
[406681562,1772073369754,-500.0,7.18e-05,2]
[406681563,1772073369781,-500.0,7.18e-05,2]
[406681564,1772073369806,-500.0,7.18e-05,2]
[406681565,1772073369834,-500.0,7.18e-05,2]
[406681566,1772073369861,-500.0,7.18e-05,2]
[406681567,1772073369886,-500.0,7.18e-05,2]
[406681568,1772073369914,-500.0,7.18e-05,2]
[406681569,1772073369941,-500.0,7.18e-05,2]
[406681570,1772073369971,-500.0,7.18e-05,2]
[406681571,1772073369997,-500.0,7.18e-05,2]
[406681572,1772073370024,-500.0,7.18e-05,2]
[406681573,1772073370050,-500.0,7.18e-05,2]
[406681574,1772073370077,-500.0,7.18e-05,2]
[406681575,1772073370103,-500.0,7.18e-05,2]
[406681576,1772073370128,-500.0,7.18e-05,2]
[406681577,1772073370154,-500.0,7.18e-05,2]
[406681578,1772073370180,-500.0,7.18e-05,2]
[406681579,1772073370208,-500.0,7.18e-05,2]
[406681580,1772073370235,-500.0,7.18e-05,2]
[406681581,1772073370262,-500.0,7.18e-05,2]
[406681582,1772073370288,-500.0,7.18e-05,2]
[406681583,1772073370313,-500.0,7.18e-05,2]
[406681584,1772073370338,-500.0,7.18e-05,2]
[406681585,1772073370363,-500.0,7.18e-05,2]
[406681586,1772073370389,-500.0,7.18e-05,2]
[406681587,1772073370414,-500.0,7.18e-05,2]
[406681588,1772073370439,-500.0,7.18e-05,2]
[406681589,1772073370464,-500.0,7.18e-05,2]
[406681590,1772073370489,-500.0,7.18e-05,2]
[406681591,1772073370516,-500.0,7.18e-05,2]
[406681592,1772073370542,-500.0,7.18e-05,2]
[406681593,1772073370568,-500.0,7.18e-05,2]
[406681594,1772073370594,-500.0,7.18e-05,2]
[406681595,1772073370619,-500.0,7.18e-05,2]
[406681596,1772073370645,-500.0,7.18e-05,2]
[406681597,1772073370670,-500.0,7.18e-05,2]
[406681598,1772073370713,-500.0,7.18e-05,2]
[406681599,1772073370743,-200.0,7.18e-05,2]
[406681600,1772073370775,-500.0,7.18e-05,2]
[406681601,1772073370805,-500.0,7.18e-05,2]
[406681602,1772073370833,-705430.96152347,7.181e-05,2]
[406681603,1772073383879,-788.4787267,7e-05,2]
[406681604,1772073383904,-2204.76901203,7e-05,2]
[406681605,1772073383928,-3909.93027946,7e-05,2]
[406681606,1772073383953,-15318.82198181,7.181e-05,2]
[406681618,1772074014521,548.18,4.597e-05,2]
[406681619,1772074014771,548.18,4.794e-05,2]
[406681620,1772074014967,548.18,4.992e-05,2]
[406681621,1772074015220,548.18,5.19e-05,2]
[406681622,1772074015515,548.18,5.388e-05,2]
[406681623,1772074015735,548.18,5.586e-05,2]
[406681624,1772074015960,548.18,5.784e-05,2]
[406681625,1772074016162,548.18,5.982e-05,2]
[406681626,1772074016379,548.18,6.18e-05,2]
[406681627,1772074016590,548.18,6.378e-05,2]
[406681792,1772074232367,-548.18,6.576e-05,2]
[406681793,1772074232376,-548.18,6.774e-05,2]
[406681794,1772074232385,-715.179,6.939e-05,2]
[406681795,1772074232394,-548.18,6.972e-05,2]
[406681796,1772074232403,-1000.0,6.979e-05,2]
[406681797,1772074232412,-847.96974164,6.98e-05,2]
[406681798,1772074232423,-352.03025836,6.98e-05,2]
[406681799,1772074232431,-1595.6619761,6.981e-05,2]
[406681800,1772074232443,-248917.46802484,6.981e-05,2]
[406681801,1772074232454,-117956.81277012,6.981e-05,2]
[406681802,1772074232465,-552.05808685,6.981e-05,2]
[406681803,1772074232485,-938.55,6.981e-05,2]
[406681812,1772074237655,-500.03289567,6.981e-05,2]
[406681813,1772074237916,-674.4805117,6.981e-05,2]
[406681918,1772074239849,-2090.40897658,6.981e-05,2]
[406681924,1772074239902,-857.81402166,6.981e-05,2]
[406681927,1772074239913,-395.472,6.981e-05,2]
[406681943,1772074240061,-931.70647987,6.981e-05,2]
[406681945,1772074240072,-373.5644,6.981e-05,2]
[406681947,1772074240084,-684.4546711,6.981e-05,2]
[406681952,1772074240115,-473.03888207,6.981e-05,2]
[406681954,1772074240126,-796.62711857,6.981e-05,2]
[406681975,1772074240325,-1622261.84918487,6.981e-05,2]
[406681978,1772074240335,-2259.0,7.041e-05,2]
[406681979,1772074240345,-548.18,7.17e-05,2]
[406681995,1772074240354,-3577.8567775,7.179e-05,2]
[406681999,1772074240505,-98849.5350344,7.179e-05,2]
[406682001,1772074240514,-6074.4423115,7.179e-05,2]
[406682003,1772074240524,-2210.4266139,7.179e-05,2]
[406682005,1772074240533,-166712.1805094,7.179e-05,2]
[406682007,1772074240542,-75783.1400526,7.179e-05,2]
[406682009,1772074240551,-53211.9520997,7.181e-05,2]
[406682011,1772074240561,-250.0,7.234e-05,2]
[406682013,1772074240570,-1050.0,7.234e-05,2]
[406682015,1772074240579,-250.0,7.234e-05,2]
[406682017,1772074240590,-250.0,7.234e-05,2]
[406682019,1772074240599,-548.18,7.368e-05,2]
[406682021,1772074240608,-549.0,7.537e-05,2]
[406682023,1772074240617,-548.18,7.566e-05,2]
[406682025,1772074240631,-320.0,7.567e-05,2]
[406682027,1772074240640,-5000.0,7.633e-05,2]
[406682029,1772074240650,-1680.0,7.678e-05,2]
[406682031,1772074240659,-548.18,7.764e-05,2]
[406682033,1772074240669,-381.71,7.897e-05,2]
[406682035,1772074240678,-150.99,7.897e-05,2]
[406682037,1772074240689,-9999.99,7.897e-05,2]
[406682039,1772074240698,-150.99,7.897e-05,2]
[406682041,1772074240707,-9999.99,7.897e-05,2]
[406682043,1772074240716,-299.99,7.897e-05,2]
[406682045,1772074240726,-548.18,7.962e-05,2]
[406682047,1772074240735,-22056.3125828,8.112e-05,2]
[406682049,1772074240744,-37198.5155357,8.112e-05,2]